bitfinex/quotes_ETHUSD_20240604
["timestamp","ask_amount","ask_price","bid_price","bid_amount"]
[1717482520658,0.55711901,3763.5,3763.3,2.65724]
[1717482520965,1.11304648,3763.8,3763.4,0.807]
[1717482520966,0.55711901,3763.6,3763.4,0.807]
[1717482521272,1.11304648,3763.9,3763.4,0.807]
[1717482521273,0.55711901,3763.7,3763.4,0.807]
[1717482521436,0.55711901,3763.8,3763.4,0.807]
[1717482523963,0.55711901,3763.8,3763.6,0.807]
[1717482524124,0.55711901,3763.9,3763.6,0.807]
[1717482524765,0.55711901,3764.0,3763.6,0.807]
[1717482525175,0.55711901,3763.9,3763.6,0.807]
[1717482526181,0.55711901,3764.0,3763.6,0.807]
[1717482527176,0.55711901,3763.9,3763.6,0.807]
[1717482527523,0.55711901,3764.0,3763.6,0.807]
[1717482527723,0.55711901,3763.9,3763.6,0.807]
[1717482529154,0.55711901,3764.0,3763.6,0.807]
[1717482539480,0.55711901,3764.1,3763.8,0.807]
[1717482540687,0.55711901,3764.2,3763.8,0.807]
[1717482543170,0.55711901,3764.2,3764.0,0.807]
[1717482543601,0.55711901,3764.3,3764.0,0.807]
[1717482544410,0.55711901,3764.3,3763.8,0.807]
[1717482547516,0.55711901,3764.3,3764.0,0.807]
[1717482549819,0.55711901,3764.3,3764.2,0.807]
[1717482550071,3.76930648,3764.7,3764.2,0.807]
[1717482550072,0.55711901,3764.4,3764.2,0.807]
[1717482556112,0.55711901,3764.4,3764.1,0.807]
[1717482559507,0.55711901,3764.4,3764.0,2.65673]
[1717482559885,0.55711901,3764.4,3764.2,0.807]
[1717482561640,0.55711901,3764.5,3764.2,0.807]
[1717482563338,0.55711901,3764.4,3764.2,0.807]
[1717482566636,0.55711901,3764.5,3764.2,0.807]
[1717482566839,0.55711901,3764.5,3764.4,0.807]
[1717482568300,0.55711901,3764.6,3764.4,0.807]
[1717482569218,0.55711901,3764.5,3764.4,0.807]
[1717482571149,0.55711901,3764.6,3764.4,0.807]
[1717482571364,0.55711901,3764.6,3764.2,2.65653]
[1717482571652,0.55711901,3764.6,3764.3,0.807]
[1717482576573,0.55711901,3764.5,3764.2,3.46353]
[1717482577116,0.55711901,3764.4,3764.2,2.65653]
[1717482577416,0.55711901,3764.4,3764.2,0.807]
[1717482578225,0.55711901,3764.4,3763.8,2.65681]
[1717482578555,0.55711901,3764.4,3764.1,0.807]
[1717482579958,2.98391901,3764.4,3763.8,2.65681]
[1717482580270,0.55711901,3764.3,3763.9,0.807]
[1717482580579,0.55711901,3764.2,3763.9,0.807]
[1717482581437,2.4769,3764.1,3763.8,2.65681]
[1717482581657,2.4769,3764.1,3763.8,3.46381]
[1717482581991,3.03401901,3764.1,3763.8,3.46381]
[1717482583284,2.4769,3764.1,3763.8,3.46381]
[1717482583491,3.03401901,3764.1,3763.8,3.46381]
[1717482585273,2.93411901,3764.1,3763.4,4.04205697]
[1717482585443,2.93411901,3764.1,3763.5,0.92324934]
[1717482585652,0.55711901,3764.0,3763.5,0.92324934]
[1717482585850,0.55711901,3764.0,3763.8,0.807]
[1717482586370,0.55711901,3764.0,3763.4,2.65715]
[1717482586548,0.55711901,3764.0,3763.8,0.807]
[1717482586736,0.55711901,3764.0,3763.4,2.65715]
[1717482586936,0.55711901,3764.0,3763.8,0.807]
[1717482592706,2.93411901,3764.1,3763.8,0.807]
[1717482594672,0.55711901,3764.0,3763.8,0.807]
[1717482595576,0.55711901,3764.1,3763.8,0.807]
[1717482595784,0.55711901,3764.1,3764.0,0.807]
[1717482596088,3.76944648,3764.5,3763.7,2.65694]
[1717482596089,0.55711901,3764.2,3763.7,2.65694]
[1717482596262,0.55711901,3764.2,3764.0,3.46373]
[1717482596657,0.55711901,3764.3,3764.0,3.46373]
[1717482597150,0.55711901,3764.3,3764.2,0.807]
[1717482598765,0.55711901,3764.5,3764.2,0.807]
[1717482598954,0.55711901,3764.5,3764.4,0.807]
[1717482599157,0.55711901,3764.6,3764.4,0.807]
[1717482599602,0.55711901,3764.5,3764.4,0.807]
[1717482599815,0.55711901,3764.6,3764.4,0.807]
[1717482600688,0.55711901,3764.6,3764.0,2.65673]
[1717482600872,0.55711901,3764.5,3764.4,0.807]
[1717482601572,0.55711901,3764.6,3764.4,0.807]
[1717482605302,0.55711901,3764.7,3764.4,0.807]
[1717482605502,0.55711901,3764.8,3764.6,0.807]
[1717482605820,0.55711901,3764.7,3764.6,0.807]
[1717482607520,0.55711901,3764.7,3764.3,2.65649]
[1717482607819,0.55711901,3764.8,3764.4,0.807]
[1717482608019,0.55711901,3764.7,3764.4,0.807]
[1717482609005,0.55711901,3764.7,3764.5,0.807]
[1717482609558,0.55711901,3764.8,3764.5,0.807]
[1717482613821,0.55711901,3764.8,3764.7,0.807]
[1717482614106,0.83657882,3765.0,3764.7,0.807]
[1717482614107,0.55711901,3765.0,3764.7,0.807]
[1717482614329,0.55711901,3765.0,3764.9,0.807]
[1717482616821,0.55711901,3765.1,3764.9,0.807]
[1717482617009,0.55711901,3765.0,3764.9,0.807]
[1717482617310,0.55711901,3765.1,3764.9,0.807]
[1717482618084,0.02380586,3765.0,3764.9,0.807]
[1717482620006,0.55711901,3765.1,3764.9,0.807]
[1717482620190,0.02380586,3765.0,3764.6,2.65628]
[1717482620391,0.02380586,3765.0,3764.9,0.807]
[1717482620881,0.02380586,3765.0,3764.6,2.65628]
[1717482620882,0.02380586,3765.0,3764.8,0.807]
[1717482621100,0.02380586,3765.0,3764.6,2.65628]
[1717482621403,0.02380586,3765.0,3764.7,0.807]
[1717482622112,0.02380586,3765.0,3764.9,0.807]
[1717482622813,0.02380586,3765.0,3764.7,0.807]
[1717482623918,0.02380586,3765.0,3764.9,3.2904]
[1717482624106,0.55711901,3765.5,3764.9,3.2904]
[1717482624412,0.55711901,3765.6,3765.2,0.807]
[1717482627320,0.55711901,3765.7,3765.2,0.807]
[1717482627513,0.55711901,3765.7,3765.3,0.807]
[1717482627979,3.21264901,3765.8,3765.3,0.807]
[1717482628177,0.55711901,3765.8,3765.3,0.807]
[1717482629315,0.55711901,3765.9,3765.5,0.807]
[1717482630619,0.55711901,3765.9,3765.7,0.807]
[1717482630803,0.55711901,3766.0,3765.7,0.807]
[1717482631204,0.55711901,3766.1,3765.7,0.807]
[1717482631878,0.02357017,3766.0,3765.7,0.807]
[1717482632228,0.02357017,3766.0,3765.5,0.807]
[1717482633118,0.02357017,3766.0,3765.3,2.65581]
[1717482633323,0.02357017,3766.0,3765.5,0.807]
[1717482638899,0.02357017,3766.0,3765.6,2.3552]
[1717482639498,0.02357017,3766.0,3765.7,0.807]
[1717482646294,3.21237901,3766.2,3765.7,0.807]
[1717482646496,0.0238241,3765.9,3765.7,0.807]
[1717482646841,4.02857944,3766.2,3765.7,0.807]
[1717482647049,0.0238241,3765.8,3765.7,0.807]
[1717482647549,3.21237901,3766.2,3765.7,0.807]
[1717482647712,3.21237901,3766.2,3765.8,2.3547]
[1717482647915,4.02857944,3766.2,3765.8,2.3547]
[1717482648540,4.02857944,3766.2,3765.7,0.807]
[1717482649137,0.55711901,3766.1,3765.6,2.3539]
[1717482649436,0.55711901,3766.1,3765.6,0.807]
[1717482651215,1.58785484,3766.1,3765.6,0.807]
[1717482655564,1.58785484,3766.1,3765.4,2.3612]
[1717482655850,1.58785484,3766.1,3765.7,0.807]
[1717482657154,0.55711901,3766.0,3765.7,0.807]
[1717482657653,0.55711901,3766.0,3765.4,2.3612]
[1717482657654,0.55711901,3766.0,3765.9,0.807]
[1717482657862,0.55711901,3766.1,3765.9,0.807]
[1717482658821,0.55711901,3766.2,3765.9,0.807]
[1717482659021,0.55711901,3766.2,3766.1,0.807]
[1717482660101,0.55711901,3766.3,3766.1,0.807]
[1717482661931,0.0238366,3766.2,3766.1,0.807]
[1717482662179,0.55711901,3766.5,3766.1,0.807]
[1717482662383,0.55711901,3766.6,3766.3,0.807]
[1717482662684,0.55711901,3766.5,3766.3,0.807]
[1717482662823,0.55711901,3766.6,3766.3,0.807]
[1717482663229,0.55711901,3766.5,3766.3,0.807]
[1717482664382,0.55711901,3766.7,3766.3,0.807]
[1717482664830,0.55711901,3766.7,3766.5,0.807]
[1717482665455,0.55711901,3766.7,3766.3,0.807]
[1717482665899,0.55711901,3766.7,3766.5,0.807]
[1717482666478,0.55711901,3766.8,3766.5,0.807]
[1717482666668,0.55711901,3766.8,3766.7,0.807]
[1717482667260,0.55711901,3766.8,3766.7,3.1209]
[1717482668112,0.62632871,3766.9,3766.7,3.1209]
[1717482668314,0.0692097,3766.9,3766.7,3.1209]
[1717482668670,0.0692097,3766.9,3766.7,0.807]
[1717482669014,0.0692097,3766.9,3766.5,3.46195]
[1717482669015,0.62632871,3766.9,3766.5,3.46195]
[1717482669637,0.0692097,3766.9,3766.7,0.807]
[1717482670400,0.0692097,3766.9,3766.5,5.04095]
[1717482670597,0.0692097,3766.9,3766.8,0.807]
[1717482671876,0.0692097,3766.9,3766.5,5.04095]
[1717482672195,0.0692097,3766.9,3766.8,3.2207]
[1717482672835,0.0692097,3766.9,3766.8,0.807]
[1717482674803,0.0692097,3766.9,3766.8,3.08]
[1717482679997,0.0692097,3766.9,3766.8,2.273]
[1717482680212,0.0692097,3766.9,3766.5,2.65495]
[1717482680674,0.02515968,3766.8,3766.5,2.65495]
[1717482680886,2.3393,3766.7,3766.1,2.6552]
[1717482681042,2.3393,3766.7,3766.3,0.807]
[1717482681378,2.3393,3766.7,3766.1,2.6552]
[1717482681379,0.02515968,3766.6,3766.1,2.6552]
[1717482683945,0.02515968,3766.6,3766.1,3.4622]
[1717482686282,0.02515968,3766.6,3766.3,0.807]
[1717482687780,0.0692097,3766.9,3766.5,0.807]
[1717482688202,0.0692097,3766.9,3766.7,0.807]
[1717482690902,0.0692097,3766.9,3766.5,0.807]
[1717482691056,0.0692097,3766.9,3766.4,2.65504]
[1717482691258,0.0692097,3766.9,3766.5,0.807]
[1717482691969,0.02491425,3766.8,3766.5,0.807]
[1717482692564,2.40661425,3766.8,3766.0,2.65529]
[1717482692871,2.40661425,3766.8,3766.4,0.807]
[1717482693081,0.02491425,3766.8,3766.3,2.65508]
[1717482693262,0.02491425,3766.8,3766.7,0.807]
[1717482693906,0.02491425,3766.8,3766.5,0.807]
[1717482695438,0.02491425,3766.8,3766.7,0.807]
[1717482695789,0.0692097,3766.9,3766.7,0.807]
[1717482696095,0.02487687,3766.8,3766.7,0.807]
[1717482696456,0.0692097,3766.9,3766.7,0.807]
[1717482696859,0.02487687,3766.8,3766.7,0.807]
[1717482697307,0.0692097,3766.9,3766.7,0.807]
[1717482697661,0.02487687,3766.8,3766.7,0.807]
[1717482697902,0.02487687,3766.8,3766.7,3.0899]
[1717482698091,0.0692097,3766.9,3766.8,2.65477]
[1717482698496,0.09408657,3766.9,3766.8,2.65477]
[1717482701177,0.0692097,3766.9,3766.8,2.65477]
[1717482710682,0.0692097,3766.9,3766.8,5.03667]
[1717482715604,0.09416973,3766.9,3766.8,5.03667]
[1717482717256,0.09416973,3766.9,3766.2,0.55791184]
[1717482717257,3.25596973,3766.9,3766.2,0.55791184]
[1717482717453,3.25596973,3766.9,3765.8,0.55791184]
[1717482717454,2.65527,3766.1,3765.8,0.55791184]
[1717482717659,0.05015195,3766.0,3765.2,1.38368483]
[1717482717900,0.05015195,3766.0,3764.8,1.38368483]
[1717482717901,0.62519517,3766.0,3764.8,1.38368483]
[1717482718078,0.5060222,3765.9,3765.2,0.807]
[1717482718484,0.02502658,3765.8,3764.8,2.65614]
[1717482718796,0.02502658,3765.8,3765.0,0.807]
[1717482719204,0.02502658,3765.8,3764.3,1.38368483]
[1717482719205,2.304,3765.7,3764.3,1.38368483]
[1717482719402,2.32844406,3765.7,3764.9,0.807]
[1717482719755,2.32844406,3765.7,3765.1,0.807]
[1717482719963,0.41985853,3765.6,3765.1,0.807]
[1717482720571,0.02444406,3765.5,3764.9,0.807]
[1717482721971,0.02444406,3765.5,3764.3,1.931]
[1717482722172,4.95958,3765.7,3764.3,1.931]
[1717482724014,0.02444406,3765.6,3764.3,1.931]
[1717482724322,4.95958,3765.7,3764.3,1.931]
[1717482724475,0.54656022,3765.6,3764.3,1.931]
[1717482725822,0.54656022,3765.6,3764.4,2.65645]
[1717482726035,0.54656022,3765.6,3764.5,3.0]
[1717482726170,2.65577,3765.4,3764.5,3.0]
[1717482726699,0.02361596,3765.3,3764.5,3.0]
[1717482727301,2.65577,3765.4,3764.5,3.0]
[1717482727675,0.02339532,3765.3,3764.5,3.0]
[1717482728072,2.65577,3765.4,3764.5,3.0]
[1717482732893,0.02337451,3765.3,3764.5,3.0]
[1717482733409,2.65577,3765.4,3764.5,3.0]
[1717482735406,2.304,3765.7,3764.5,3.0]
[1717482735606,2.304,3765.7,3763.5,10.24460528]
[1717482735607,0.02337451,3765.3,3764.6,5.1489]
[1717482735823,0.02337451,3765.3,3764.7,3.0]
[1717482736143,2.3705,3766.2,3764.7,3.0]
[1717482736312,0.96905,3766.1,3764.7,3.0]
[1717482736495,2.3705,3766.2,3764.7,3.0]
[1717482736697,5.02574,3766.2,3765.0,2.65601]
[1717482736903,5.02574,3766.2,3765.3,2.65579]
[1717482738209,5.13123,3766.6,3765.6,2.65558]
[1717482742013,0.804,3766.5,3765.6,2.65558]
[1717482742629,5.13123,3766.6,3765.7,0.804]
[1717482742823,5.76423367,3766.6,3765.7,0.804]
[1717482747536,2.65514,3766.3,3765.6,2.65558]
[1717482747751,2.65514,3766.3,3765.6,3.45958]
[1717482749149,2.65514,3766.3,3765.8,0.804]
[1717482750430,2.6549,3766.7,3766.1,0.804]
[1717482751276,2.6549,3766.7,3765.9,3.4594]
[1717482752522,4.06122097,3766.7,3765.9,2.6554]
[1717482753015,3.25722097,3766.7,3765.9,2.6554]
[1717482753220,4.06122097,3766.7,3765.9,2.6554]
[1717482753919,2.65506,3766.4,3765.5,2.65563]
[1717482754254,3.2421,3766.3,3765.5,2.65563]
[1717482754460,0.589716,3766.2,3765.5,2.65563]
[1717482757377,2.65527,3766.1,3765.3,0.804]
[1717482758758,2.65527,3766.1,3765.1,2.6559]
[1717482759041,2.65527,3766.1,3765.2,0.804]
[1717482759349,3.45927,3766.1,3765.1,2.6559]
[1717482759545,0.6487086,3766.0,3765.1,3.4599]
[1717482760468,0.6487086,3766.0,3765.3,0.804]
[1717482763255,0.55711901,3766.0,3765.3,0.804]
[1717482763860,0.55711901,3766.0,3765.5,0.804]
[1717482766049,3.21238901,3766.1,3765.5,0.804]
[1717482767197,0.55711901,3766.0,3765.5,0.804]
[1717482767396,3.21238901,3766.1,3765.5,0.804]
[1717482768196,0.55711901,3766.0,3765.5,0.804]
[1717482772363,0.55711901,3766.0,3765.7,0.804]
[1717482776321,0.55711901,3766.0,3765.4,2.65574]
[1717482776604,0.55711901,3766.0,3765.5,0.804]
[1717482776813,0.55711901,3766.0,3765.7,0.804]
[1717482778178,0.55711901,3765.9,3765.7,0.804]
[1717482779801,0.55711901,3765.9,3765.7,3.45954]
[1717482780101,0.55711901,3766.1,3765.7,3.45954]
[1717482780405,0.55711901,3766.1,3765.9,0.804]
[1717482780616,0.55711901,3766.2,3766.0,3.45932]
[1717482780906,0.55711901,3766.3,3766.0,3.45932]
[1717482781267,0.55711901,3766.3,3766.2,0.804]
[1717482782223,0.55711901,3766.4,3766.2,0.804]
[1717482784121,0.55711901,3766.3,3766.2,0.804]
[1717482784792,0.55711901,3766.4,3766.2,0.804]
[1717482786099,0.023799,3766.3,3766.0,3.45932]
[1717482786492,0.58091801,3766.3,3766.0,3.45932]
[1717482787323,0.023799,3766.3,3766.0,3.45932]
[1717482787522,0.58091801,3766.3,3766.0,3.45932]
[1717482788225,0.023799,3766.3,3766.0,3.45932]
[1717482789893,0.023799,3766.3,3766.2,0.804]
[1717482790230,0.58091801,3766.3,3766.2,0.804]
[1717482790992,0.023799,3766.3,3766.2,0.804]
[1717482792523,0.58091801,3766.3,3766.2,0.804]
[1717482794030,0.023799,3766.3,3766.2,0.804]
[1717482795236,0.023799,3766.3,3766.0,2.65532]
[1717482795538,0.55711901,3766.1,3765.9,0.804]
[1717482795682,0.55711901,3766.0,3765.9,0.804]
[1717482796028,0.55711901,3766.1,3765.9,0.804]
[1717482796181,0.02377405,3766.0,3765.6,2.65555]
[1717482796387,0.02377405,3766.0,3765.9,0.804]
[1717482797313,0.02377405,3766.0,3765.6,2.65555]
[1717482797713,0.02377405,3766.0,3765.9,0.804]
[1717482798225,0.55711901,3766.1,3765.9,0.804]
[1717482799326,0.55711901,3766.1,3765.6,2.65555]
[1717482799486,0.55711901,3766.1,3766.0,0.804]
[1717482801135,0.55711901,3766.1,3765.6,2.65555]
[1717482801439,0.55711901,3766.1,3766.0,0.804]
[1717482801741,3.21127882,3766.2,3766.0,0.804]
[1717482802095,0.55692345,3766.1,3766.0,0.804]
[1717482804296,3.21127882,3766.2,3766.0,0.804]
[1717482805036,0.5569387,3766.1,3766.0,0.804]
[1717482805650,0.5569387,3766.1,3765.8,0.804]
[1717482808072,0.5569387,3766.0,3765.8,0.804]
[1717482809079,0.5569387,3766.1,3765.8,0.804]
[1717482809365,0.5569387,3766.0,3765.8,0.804]
[1717482813779,3.2122787,3766.0,3765.3,2.384]
[1717482813984,3.2122787,3766.0,3765.6,0.804]
[1717482814186,0.5569387,3765.8,3765.6,0.804]
[1717482819182,0.5569387,3765.8,3765.7,0.804]
[1717482819587,0.5569387,3765.8,3765.2,2.65584]
[1717482819746,2.4492,3765.7,3765.4,0.804]
[1717482823909,0.55683893,3765.8,3765.4,0.804]
[1717482824194,0.55683893,3765.8,3765.6,0.804]
[1717482825451,2.2959,3766.1,3765.6,0.804]
[1717482826182,2.2959,3766.1,3765.2,5.11704]
[1717482826384,2.2959,3766.1,3765.6,0.804]
[1717482826571,2.65535,3766.0,3765.2,2.65584]
[1717482827087,2.65535,3766.0,3765.4,0.804]
[1717482827700,2.65535,3766.0,3765.2,2.65584]
[1717482827855,2.65535,3766.0,3765.4,0.804]
[1717482828056,0.5446353,3765.9,3765.4,0.804]
[1717482833294,5.14631,3766.4,3765.6,0.804]
[1717482834172,5.14631,3766.4,3765.8,0.804]
[1717482834371,2.4912,3766.4,3766.0,0.804]
[1717482835088,2.4912,3766.4,3765.8,0.804]
[1717482837709,2.4912,3766.4,3766.0,0.804]
[1717482842431,2.4912,3766.4,3765.7,2.65553]
[1717482842639,2.4912,3766.4,3765.8,0.804]
[1717482843138,2.4912,3766.4,3765.7,2.65553]
[1717482843313,3.005804,3766.4,3765.7,2.65553]
[1717482843517,3.005804,3766.4,3765.7,3.45953]
[1717482844116,0.55711597,3765.9,3765.7,3.45953]
[1717482846706,0.83567396,3766.1,3765.7,3.45953]
[1717482846707,0.55711597,3765.8,3765.7,3.45953]
[1717482847005,0.55711597,3765.9,3765.7,3.45953]
[1717482848654,0.73121471,3766.1,3765.7,3.45953]
[1717482848820,0.55704437,3766.1,3765.9,2.6554]
[1717482849002,0.55704437,3766.5,3766.1,2.65523]
[1717482849204,0.55704437,3766.7,3766.1,2.65523]
[1717482849442,0.55704437,3766.7,3766.4,0.804]
[1717482849653,3.45443195,3767.0,3766.6,0.804]
[1717482849835,0.55684766,3766.7,3766.6,0.804]
[1717482850000,3.45443195,3767.0,3766.6,0.804]
[1717482850437,0.55669726,3766.7,3766.6,0.804]
[1717482852658,0.85330796,3766.7,3766.1,2.65523]
[1717482852947,2.4366,3766.6,3766.1,2.65523]
[1717482853121,0.55669726,3766.5,3766.1,2.65523]
[1717482853525,0.55669726,3766.4,3766.1,2.65523]
[1717482854023,0.55669726,3766.3,3765.9,0.804]
[1717482856557,2.4366,3766.6,3766.1,0.804]
[1717482856558,0.55669726,3766.5,3766.1,0.804]
[1717482857253,0.55669726,3766.5,3766.3,0.804]
[1717482857423,0.55669726,3766.6,3766.3,0.804]
[1717482858362,0.02329908,3766.5,3766.3,0.804]
[1717482859620,0.55669726,3766.7,3766.2,2.65513]
[1717482859823,0.02349478,3766.4,3766.3,0.804]
[1717482860342,0.55669726,3766.7,3766.3,0.804]
[1717482864347,0.55669726,3766.8,3766.3,0.804]
[1717482864525,0.55669726,3766.7,3766.3,0.804]
[1717482865381,0.55669726,3766.7,3766.6,0.804]
[1717482865667,0.90361952,3766.9,3766.4,3.45904]
[1717482865668,2.98739726,3766.8,3766.4,3.45904]
[1717482865871,2.98739726,3766.8,3766.4,2.65504]
[1717482866013,0.55669726,3766.6,3766.4,2.65504]
[1717482866767,0.55669726,3766.6,3766.0,2.65529]
[1717482866916,0.55669726,3766.6,3766.0,3.45929]
[1717482867115,0.55669726,3766.5,3766.0,3.45929]
[1717482867365,0.83440982,3766.6,3766.0,3.45929]
[1717482867366,0.55669726,3766.4,3766.0,3.45929]
[1717482868656,0.55669726,3766.5,3766.0,3.45929]
[1717482868858,0.55669726,3766.5,3766.0,2.65529]
[1717482869058,0.55669726,3766.4,3766.0,2.65529]
[1717482869226,0.55669726,3766.4,3766.0,3.45929]
[1717482869430,0.55669726,3766.4,3766.0,2.65529]
[1717482869616,0.55669726,3766.4,3766.0,3.45929]
[1717482870367,0.55669726,3766.4,3765.8,0.3]
[1717482870368,2.4059,3766.2,3765.8,0.3]
[1717482870664,2.96259726,3766.2,3765.8,0.3]
[1717482871615,0.55669726,3766.1,3765.8,0.3]
[1717482875519,0.55669726,3766.0,3765.8,0.3]
[1717482876973,1.36069726,3766.0,3765.8,0.3]
[1717482877181,1.01679797,3765.9,3765.8,0.3]
[1717482878042,0.55669726,3765.9,3765.8,0.3]
[1717482879678,0.83440982,3766.0,3765.8,0.3]
[1717482881498,0.55618132,3766.0,3765.8,0.3]
[1717482881858,0.55618132,3766.1,3765.8,0.3]
[1717482882501,3.48953982,3766.3,3765.8,0.3]
[1717482882502,0.55618132,3766.0,3765.8,0.3]
[1717482883059,0.55618132,3766.1,3765.8,0.3]
[1717482883602,0.55618132,3766.0,3765.8,0.3]
[1717482884701,0.55618132,3766.1,3765.8,0.3]
[1717482885004,0.55618132,3766.0,3765.8,0.3]
[1717482885524,0.55618132,3766.1,3765.8,0.3]
[1717482891004,0.55618132,3766.2,3765.8,0.3]
[1717482891706,0.55618132,3766.1,3765.8,0.3]
[1717482893475,0.55618132,3766.2,3765.8,0.3]
[1717482896425,0.55618132,3766.1,3765.8,0.3]
[1717482898527,0.55618132,3766.0,3765.8,0.3]
[1717482899722,2.88338132,3766.0,3765.8,0.3]
[1717482903122,0.55618132,3765.9,3765.8,0.3]
[1717482904841,5.81695982,3766.0,3765.8,0.3]
[1717482905138,0.69311918,3765.9,3765.8,0.3]
[1717482905321,1.527529,3765.9,3765.8,0.3]
[1717482906019,1.80735113,3765.9,3765.8,0.3]
[1717482906631,1.24311918,3765.9,3765.8,0.3]
[1717482906848,2.63375723,3765.9,3765.8,0.3]
[1717482907650,1.24311918,3765.9,3765.8,0.3]
[1717482913642,1.29327113,3765.9,3765.8,0.3]
[1717482914518,3.58507113,3765.9,3765.8,0.3]
[1717482920971,8.7103369,3765.9,3765.8,0.3]
[1717482921135,9.4603369,3765.9,3765.8,0.3]
[1717482926186,11.12522726,3765.9,3765.8,0.3]
[1717482929180,9.41018495,3765.9,3765.8,0.3]
[1717482930185,11.07507531,3765.9,3765.8,0.3]
[1717482930483,9.41018495,3765.9,3765.8,0.3]
[1717482930784,11.07507531,3765.9,3765.8,0.3]
[1717482931374,9.41018495,3765.9,3765.8,0.3]
[1717482931693,11.07507531,3765.9,3765.8,0.3]
[1717482932752,9.41018495,3765.9,3765.8,0.3]
[1717482933093,11.07507531,3765.9,3765.8,0.3]
[1717482934098,11.07354773,3765.9,3765.8,0.3]
[1717482934278,10.26954773,3765.9,3765.8,0.3]
[1717482934480,11.07354773,3765.9,3765.8,0.3]
[1717482941309,9.41018495,3765.9,3765.8,0.3]
[1717482942246,11.07425314,3765.9,3765.8,0.3]
[1717482942421,9.41018495,3765.9,3765.8,0.3]
[1717482949626,11.35298123,3765.9,3765.8,0.3]
[1717482952367,9.41018495,3765.9,3765.8,0.3]
[1717482962255,7.11838495,3765.9,3765.8,0.3]
[1717482964297,9.41870851,3765.9,3765.8,0.3]
[1717482966103,9.99289545,3765.9,3765.8,0.3]
[1717482966305,7.69257189,3765.9,3765.8,0.3]
[1717482970731,4.87418694,3765.9,3765.8,0.3]
[1717482970956,2.87722317,3765.9,3765.8,2.7715]
[1717482971155,2.52426956,3765.9,3765.8,2.7715]
[1717482971435,2.24462132,3765.9,3765.8,2.7715]
[1717482972224,0.57418694,3765.9,3765.8,2.7715]
[1717482972729,1.12418694,3765.9,3765.8,2.7715]
[1717482975215,1.92818694,3765.9,3765.8,2.7715]
[1717482976208,3.31843324,3765.9,3765.8,2.7715]
[1717482978325,3.31828901,3765.9,3765.8,2.7715]
[1717482979053,3.31788719,3765.9,3765.8,2.7715]
[1717482979750,2.74384448,3765.9,3765.8,2.7715]
[1717482979927,1.354,3765.9,3765.8,2.7715]
[1717482982061,3.90796873,3765.9,3765.8,0.3]
[1717482982269,3.85781678,3765.9,3765.8,0.3]
[1717482982413,2.4679723,3765.9,3765.8,0.3]
[1717482983154,4.13487207,3765.9,3765.8,0.3]
[1717482983523,3.33087207,3765.9,3765.8,0.3]
[1717482983767,4.13487207,3765.9,3765.8,0.3]
[1717482986764,1.89391945,3765.9,3765.8,0.3]
[1717482986935,4.13501288,3765.9,3765.8,0.3]
[1717482992530,2.24109343,3765.9,3765.8,0.3]
[1717482992733,3.04509343,3765.9,3765.8,0.3]
[1717482993124,0.57413,3765.9,3765.8,0.3]
[1717482993341,1.37813,3765.9,3765.8,0.3]
[1717482993728,0.57413,3765.9,3765.8,0.3]
[1717482993955,1.92813,3765.9,3765.8,0.3]
[1717482995273,3.31698503,3765.9,3765.8,0.3]
[1717482995972,1.96298503,3765.9,3765.8,0.3]
[1717482996174,1.96298503,3765.9,3765.8,2.5687]
[1717482996347,0.57413,3765.9,3765.8,2.5687]
[1717482996684,3.4887969,3766.0,3765.8,2.5687]
[1717483002558,0.5553145,3765.9,3765.8,2.5687]
[1717483003679,3.4887969,3766.0,3765.8,2.5687]
[1717483007179,0.8334469,3765.9,3765.8,2.5687]
[1717483007477,3.4887969,3766.0,3765.8,2.5687]
[1717483008051,0.8334469,3765.9,3765.8,2.5687]
[1717483008681,3.4887969,3766.0,3765.8,2.5687]
[1717483009051,0.8334469,3765.9,3765.8,0.3]
[1717483009451,3.76650631,3766.0,3765.8,0.3]
[1717483009654,0.804,3765.9,3765.8,0.3]
[1717483011688,3.76650631,3766.0,3765.8,0.3]
[1717483013283,1.11115631,3765.9,3765.8,0.3]
[1717483014691,4.57050631,3766.0,3765.8,0.3]
[1717483014853,3.76650631,3766.0,3765.8,0.3]
[1717483015184,1.11115631,3765.9,3765.8,0.3]
[1717483015750,3.76650631,3766.0,3765.8,2.7066]
[1717483016156,1.11115631,3765.9,3765.8,2.7066]
[1717483022290,1.68516361,3765.9,3765.8,2.7066]
[1717483025519,0.55584484,3765.9,3765.8,2.7066]
[1717483030396,0.55584484,3765.9,3765.8,0.3]
[1717483030639,0.57395043,3766.2,3765.8,0.3]
[1717483030640,0.83376726,3766.0,3765.8,0.3]
[1717483030802,0.83376726,3765.9,3765.8,0.3]
[1717483031141,0.83376726,3766.0,3765.8,0.3]
[1717483033233,0.83376726,3765.9,3765.8,0.3]
[1717483034341,1.6851331,3766.0,3765.8,0.3]
[1717483034543,0.83411041,3765.9,3765.8,0.3]
[1717483037237,1.11115631,3766.0,3765.8,0.3]
[1717483037742,0.83435255,3765.9,3765.8,0.3]
[1717483038240,1.11115631,3766.0,3765.8,0.3]
[1717483040744,1.11115631,3765.9,3765.8,0.3]
[1717483041103,1.11115631,3766.0,3765.8,0.3]
[1717483041336,1.11115631,3765.9,3765.8,0.3]
[1717483042250,1.39167338,3766.0,3765.8,0.3]
[1717483042551,1.96576699,3766.0,3765.8,0.3]
[1717483043290,1.11344401,3765.9,3765.8,0.3]
[1717483043577,0.83508457,3765.9,3765.8,0.3]
[1717483043762,0.83508457,3765.9,3765.8,2.7573]